Cogmind - Beta 10.2 @@@ ROGUE MODE // 2021.01.30 @ 16:26:08 Player: cavemonk Result: Destroyed by G-47 Trooper with Particle Gun Performance ------------- Evolutions (3) 1500 Regions Visited (4) 800 Robots Destroyed (0) 0 Value Destroyed (0) 0 Prototype IDs (0) 0 Alien Tech Used (0) 0 Bonus (834) 834 TOTAL SCORE: 3134 Bonus ------- Pacifist 834 Cogmind --------- Core Integrity 0/700 Matter 69/300 Energy 100/100 System Corruption 0% Temperature Cool (9) Movement Core (50) Location -7/Factory Parts ------- > --- POWER (1) -------- (None) > --- PROPULSION (8) --- (None) > --- UTILITY (2) ------ Advanced Signal Interpreter > --- WEAPON (2) ------- (None) > --- INVENTORY (4) ---- (None) Peak State ------------ > --- POWER ------------ (None) > --- PROPULSION ------- Armored Treads Armored Wheel > --- UTILITY ---------- Propulsion Shielding Propulsion Shielding > --- WEAPON ----------- (None) > --- INVENTORY -------- Advanced Signal Interpreter [Rating: 7] Favorites ----------- Power None Propulsion Armored Wheel Treads Armored Treads Wheel Armored Wheel Utility Propulsion Shielding Processor Advanced Signal Interpreter Protection Propulsion Shielding Weapon None Build | -11 -10 -9 -8 -7 ------- Run | Scr Mat Mat Mat Fac Slots Evolved 6 | . . 2 2 2 Power . | . . . . . Propulsion 6 | . . 2 2 2 Utility . | . . . . . Weapon . | . . . . . Parts Attached 6 | . . 2 3 1 Power . | . . . . . Engine . | . . . . . Core . | . . . . . Reactor . | . . . . . Propulsion 3 | . . . 3 . Treads 1 | . . . 1 . Leg . | . . . . . Wheel 2 | . . . 2 . Hover . | . . . . . Flight . | . . . . . Utility 3 | . . 2 . 1 Device . | . . . . . Storage . | . . . . . Processor 1 | . . . . 1 Hackware . | . . . . . Protection 2 | . . 2 . . Artifact . | . . . . . Weapon . | . . . . . Energy Gun . | . . . . . Energy Cannon . | . . . . . Ballistic Gun . | . . . . . Ballistic Cannon . | . . . . . Launcher . | . . . . . Special Weapon . | . . . . . Impact Weapon . | . . . . . Slashing Weapon . | . . . . . Piercing Weapon . | . . . . . Special Melee Weapon . | . . . . . Unidentified Prototypes . | . . . . . Parts Lost 1 | . . . . 1 Power . | . . . . . Propulsion . | . . . . . Utility 1 | . . . . 1 Weapon . | . . . . . Highest Loss Streak 1 | . . . . 1 Average Slot Usage (%) 18 | . . 17 28 20 Treads 2 | . . . 3 4 Wheel 4 | . . . 7 4 Processor 1 | . . . . 2 Protection 10 | . . 17 18 8 Naked Turns 92 | . 87 4 . 1 Heaviest Build 2 | . . 2 2 2 Greatest Support 3 | 3 3 3 3 3 Greatest Overweight (x) . | . . . . . Average Overweight (x) . | . . . . . Largest Inventory Capacity 4 | 4 4 4 4 4 Average Capacity 4 | 4 4 4 4 4 Most Carried 2 | . . . 2 1 Average Carried . | . . . . . Final Capacity 4 | 4 4 4 4 4 Final Carried 1 | . . . 1 . Class Distribution -------------------- 100% | Mutant Dominant Class ---------------- Mutant | -10/Materials Mutant | -9/Materials Mutant | -8/Materials Mutant | -7/Factory Resources | -11 -10 -9 -8 -7 ----------- Run | Scr Mat Mat Mat Fac Matter Collected . | . . . . . Remotely . | . . . . . Salvage Created . | . . . . . Parts . | . . . . . Haulers Intercepted . | . . . . . Recyclers Shooed . | . . . . . Parts Field Recycled . | . . . . . Retrieved Matter . | . . . . . Parts Self-Destructed . | . . . . . Prevented . | . . . . . Kills | -11 -10 -9 -8 -7 ------- Run | Scr Mat Mat Mat Fac Combat Hostiles Destroyed . | . . . . . Classes Destroyed . | . . . . . Best Kill Streak . | . . . . . Combat Bots Only . | . . . . . Max Kills in Single Turn . | . . . . . Gunslinging . | . . . . . Exploded . | . . . . . Melee . | . . . . . Uniques/NPCs Destroyed . | . . . . . Combat | -11 -10 -9 -8 -7 -------- Run | Scr Mat Mat Mat Fac Damage Taken 1542 | . 198 55 200 1089 Core 1078 | . 198 55 124 701 Absorbed by Shields . | . . . . . Core Remaining (%) 70 | 100 20 86 77 . Volleys Fired . | . . . . . Largest . | . . . . . Hottest . | . . . . . Shots Fired . | . . . . . Gun . | . . . . . Cannon . | . . . . . Launcher . | . . . . . Special . | . . . . . Kinetic . | . . . . . Thermal . | . . . . . Explosive . | . . . . . Electromagnetic . | . . . . . Robot Hit Streak . | . . . . . Robot Miss Streak . | . . . . . Penetration Max . | . . . . . Secondary Targets . | . . . . . Shots Hit Robots . | . . . . . Core Hits 3 | . 1 . 2 . Critical Hits . | . . . . . Critical Kills . | . . . . . Critical Parts Destroyed . | . . . . . Melee Attacks . | . . . . . Impact . | . . . . . Slashing . | . . . . . Piercing . | . . . . . Sneak Attacks . | . . . . . Combat Hostiles . | . . . . . Follow-up Attacks . | . . . . . Damage Inflicted 14 | . 11 . 3 . Guns . | . . . . . Cannons . | . . . . . Explosions . | . . . . . Melee . | . . . . . Ramming 14 | . 11 . 3 . Kinetic . | . . . . . Thermal . | . . . . . Explosive . | . . . . . Electromagnetic . | . . . . . Impact . | . . . . . Slashing . | . . . . . Piercing . | . . . . . Highest Corruption 2 | . 2 . . . Average Corruption 2 | . 2 . . . Corruption Purged . | . . . . . Overload Shots . | . . . . . Overflow Damage . | . . . . . Projectiles . | . . . . . Explosions . | . . . . . Melee . | . . . . . Knockbacks . | . . . . . Impact . | . . . . . Kinetic . | . . . . . Secondary . | . . . . . Self-Inflicted Damage 6 | . 5 . 1 . Shots . | . . . . . Rammed 6 | . 4 . 2 . Targets Rammed 6 | . 4 . 2 . Kicked . | . . . . . Crushed . | . . . . . Highest Temperature . | . . . . . Average Temperature . | . . . . . Received Heat Transfer 597 | . 42 . . 555 Siege Activations . | . . . . . Robots Corrupted . | . . . . . Combat Hostiles . | . . . . . Parts Fried . | . . . . . Impact Corruptions . | . . . . . Robots Melted . | . . . . . Combat Hostiles . | . . . . . Parts Melted . | . . . . . Heat Transferred . | . . . . . Parts Sabotaged . | . . . . . Parts Stolen . | . . . . . Parts Stripped . | . . . . . Power Chain Reactions . | . . . . . Missiles Intercepted . | . . . . . Alert | -11 -10 -9 -8 -7 ------- Run | Scr Mat Mat Mat Fac Peak Influence 90 | . 75 90 37 85 Initial 37 | . . 31 37 16 Average 43 | . 24 55 37 54 Maximum Alert Level . | . . . . . Low Security (%) 100 | 100 100 100 100 100 Level 1 . | . . . . . Level 2 . | . . . . . Level 3 . | . . . . . Level 4 . | . . . . . Level 5 . | . . . . . High Security . | . . . . . Max Security . | . . . . . Squads Dispatched 3 | . 2 . . 1 Investigation 1 | . . . . 1 Extermination . | . . . . . Reinforcement 2 | . 2 . . . Assault . | . . . . . Garrison . | . . . . . Intercept . | . . . . . Construction Impeded . | . . . . . Haulers Reinforced . | . . . . . Stealth | -11 -10 -9 -8 -7 --------- Run | Scr Mat Mat Mat Fac Distress Signals . | . . . . . Communications Jammed . | . . . . . Distress Signals . | . . . . . Times Spotted 22 | . 7 5 4 6 Peak Tracking Total 6 | . 4 5 6 3 Tactical Retreats 4 | . 1 . . 3 Traps | -11 -10 -9 -8 -7 ------- Run | Scr Mat Mat Mat Fac Traps Triggered . | . . . . . Indirectly . | . . . . . Trap Hack Attempts . | . . . . . Triggered . | . . . . . Disarmed . | . . . . . Reprogrammed . | . . . . . Reused . | . . . . . Traps Extracted . | . . . . . Installed . | . . . . . Triggered . | . . . . . Machines | -11 -10 -9 -8 -7 ---------- Run | Scr Mat Mat Mat Fac Machines Disabled . | . . . . . Max in Single Turn . | . . . . . Machines Sabotaged . | . . . . . Garrisons Compromised . | . . . . . Overloaded Fab Kills . | . . . . . Fab Network Shutdowns . | . . . . . Hacking | -11 -10 -9 -8 -7 --------- Run | Scr Mat Mat Mat Fac Machines Accessed 3 | . . 2 . 1 Terminals 2 | . . 2 . . Fabricators 1 | . . . . 1 Repair Stations . | . . . . . Recycling Units . | . . . . . Scanalyzers . | . . . . . Garrison Access . | . . . . . Total Hacks 6 | . . 3 . 3 Successful 4 | . . 2 . 2 Failed 2 | . . 1 . 1 Catastrophic . | . . . . . Database Lockouts . | . . . . . Manual 6 | . 2 1 . 3 Terminals 3 | . . 3 . . Fabricators 3 | . . . . 3 Repair Stations . | . . . . . Recycling Units . | . . . . . Scanalyzers . | . . . . . Garrison Access . | . . . . . Terminal Hacks 2 | . . 2 . . Level Access Points 1 | . . 1 . . Zone Layout 1 | . . 1 . . Fabricator Hacks . | . . . . . Repair Station Hacks . | . . . . . Recycling Unit Hacks . | . . . . . Scanalyzer . | . . . . . Garrison Access Hacks . | . . . . . Unauthorized Hacks 2 | . . . . 2 Terminals . | . . . . . Fabricators 2 | . . . . 2 Haulers 1 | . . . . 1 Download 1 | . . . . 1 Repair Stations . | . . . . . Recycling Units . | . . . . . Scanalyzers . | . . . . . Garrison Access . | . . . . . Data Cores Recovered . | . . . . . Used . | . . . . . Hacking Detections 3 | . 1 1 . 1 Full Trace Events . | . . . . . Feedback Events . | . . . . . Feedback Blocked . | . . . . . Robot Schematics Acquired . | . . . . . Robots Built . | . . . . . Matter . | . . . . . Time . | . . . . . Total Robot Build Rating . | . . . . . Part Schematics Acquired 1 | . . . . 1 Parts Built . | . . . . . Matter . | . . . . . Time . | . . . . . Total Part Build Rating . | . . . . . Parts Repaired . | . . . . . Time . | . . . . . Parts Recycled . | . . . . . Recycled Matter . | . . . . . Retrieved Matter . | . . . . . Retrieved Components . | . . . . . Parts Scanalyzed . | . . . . . Part Schematics Acquired . | . . . . . Parts Damaged . | . . . . . Bothacking | -11 -10 -9 -8 -7 ------------ Run | Scr Mat Mat Mat Fac Used RIF Installer . | . . . . . Robots Hacked . | . . . . . Non-combat . | . . . . . Combat . | . . . . . Robot Hacks Applied . | . . . . . Relay Couplers Released . | . . . . . Robots Rewired . | . . . . . Allies Hacked . | . . . . . Hacks Repelled . | . . . . . Allies | -11 -10 -9 -8 -7 -------- Run | Scr Mat Mat Mat Fac Total Allies . | . . . . . Largest Group . | . . . . . Highest-Rated Group . | . . . . . Highest-Rated Ally . | . . . . . Total Orders . | . . . . . Ally Attacks . | . . . . . Total Damage . | . . . . . Kills . | . . . . . Allies Corrupted . | . . . . . Allies Melted . | . . . . . Intel | -11 -10 -9 -8 -7 ------- Run | Scr Mat Mat Mat Fac Robot Analysis Total . | . . . . . Derelict Logs Recovered . | . . . . . Drone Launches . | . . . . . Drone Recoveries . | . . . . . Exploration | -11 -10 -9 -8 -7 ------------- Run | Scr Mat Mat Mat Fac Turns Passed 464 | 9 87 50 113 205 Spaces Moved 498 | 18 165 93 191 31 Core 498 | 18 165 93 191 31 Treads . | . . . . . Legs . | . . . . . Wheels . | . . . . . Hover . | . . . . . Flight . | . . . . . Fastest Speed 50 | 50 50 50 50 50 Average Speed 50 | 50 50 50 50 50 Slowest Speed 50 | 50 50 50 50 50 Overloaded Moves . | . . . . . Propulsion Burnouts . | . . . . . Robots Hopped . | . . . . . Cave-ins Triggered . | . . . . . Exploration Rate (%) 14 | 3 24 17 25 2 Regions Visited 4 Branch Regions . Pre-discovered Areas . | . . . . . Known Exits Taken 1 | . . 1 . . Unknown Exits Taken 3 | 1 1 . 1 . Scrap Searched . | . . . . . Spaces Dug . | . . . . . Terrain Destroyed . | . . . . . Melee . | . . . . . Projectile . | . . . . . AOE . | . . . . . Terrain Rammed . | . . . . . Walls Destroyed . | . . . . . Machines Disabled . | . . . . . Actions | -11 -10 -9 -8 -7 --------- Run | Scr Mat Mat Mat Fac Total 708 | 17 168 94 207 222 Wait 195 | . . . 8 187 Move 494 | 17 164 92 190 31 Hop . | . . . . . Pick Up 3 | . . . 3 . Fast Attach 3 | . . 2 1 . Attach 3 | . . . 2 1 Detach . | . . . . . Swap . | . . . . . Drop 4 | . . . 1 3 Fire . | . . . . . Melee . | . . . . . Ram 5 | . 4 . 1 . Kick . | . . . . . Crush 1 | . . . 1 . Escape Stasis . | . . . . . Rewire . | . . . . . Trap . | . . . . . Miscellaneous . | . . . . . Route ------- -11/Scrapyard -10/Materials -9/Materials (discovered 3 exits: *Mat x3) -8/Materials -7/Factory History --------- Turn | Location | Event 5 | -11/Scrapyard | Discovered new exit (range 12) 10 | -11/Scrapyard | Entered Materials 38 | -10/Materials | Discovered new exit (range 8) 87 | -10/Materials | Core integrity fell below 50% 97 | -10/Materials | Entered another Materials area 97 | -9/Materials | Evolved 2 slots: Propulsion x2 138 | -9/Materials | Identified exit to Materials 147 | -9/Materials | Entered another Materials area 147 | -8/Materials | Evolved 2 slots: Propulsion x2 254 | -8/Materials | Discovered new exit (range 14) 260 | -8/Materials | Entered Factory 260 | -7/Factory | Evolved 2 slots: Propulsion x2 307 | -7/Factory | Build established: Mutant 416 | -7/Factory | Core integrity fell below 50% 450 | -7/Factory | Core integrity fell below 20% 465 | -7/Factory | Destroyed by G-47 Trooper with Particle Gun Last Messages --------------- GOAL=ESCAPE 00269_ Connecting with Fabricator... 00269_ Current location identified: Factory >>Trojan(Haulers) Trojan loaded successfully. Testing... Hauler tracking enabled and active. >>Force(Download) DOWNLOADED[Point Defense System] 00269_ ALERT: Suspicious activity at Fabricator F004. Dispatching Investigation squad. 00357_ Power Conduit explodes. 00357_ G-47 Trooper destroyed. 00357_ Power Conduit explodes. 00357_ Propulsion Shielding destroyed. 00373_ U-05 Engineer lays Concrete. 00395_ Dropped Propulsion Shielding. 00396_ Dropped Arm. Wheel. 00396_ Dropped Arm. Treads. 00396_ U-05 Engineer lays Concrete. Map ----- +----------------------------------------------------+ | ????????### #??????????????? | | ????????# #??????????????? | | ????????# #??????????????? | | ????????# #??????????????? | | ????????# #??????????????? | | ????????# #??????????????? | | ????????### #??????????????? | | ??????????# ########???????? | | ??????????# #???????? | | ??????????# #???????? | | ??????????# #???????? | | ??????????# #???????? | | ??????????# #???????? | | ????############## #???????? | | ????#= """ # ###+###?? | | ????# # | | ????# + | | ????# ! # | | ??### # | | ??# # | | ??# # ######### | | ??# # #???????? | | ??# = = u # #???????? | | ?## g # #???????? | | ?# ; # #???????? | | ??# ; =@= # #???????? | | ??# ;;; ###### #???????? | | ??# ; ; #????? #???????? | | ??####### ###????? ???????? | | ????????? ??????? ????????? | | ?????????? ?????? !??????????? | | ?????????? ??????????????????? | | ??????????? ##?????????????????? | | ??????????? #??????????????????? | | ????????????#??????????????????? | | ???????????????????????????????? | | ???????????????????????????????? | | ???????????????????????????????? | | ???????????????????????????????? | | ???????????????????????????????? | | ???????????????????????????????? | | ???????????????????????????????? | | ???????????????????????????????? | | ???????????????????????????????? | | ???????????????????????????????? | | ???????????????????????????????? | | ???????????????????????????????? | | ???????????????????????????????? | | ???????????????????????????????? | | ???????????????????????????????? | +----------------------------------------------------+ Best States ------------- Heat Dissipation 34 Energy Generation 5 Energy Capacity 100 Matter Stores 115 Matter Capacity 300 Sight Range 16 Terrain Scan Density 10 Propulsion Shielding 33 Evasion (%) 50 Recoil Reduction 1 Item Schematics ----------------- Point Defense System | -7/Factory | Downloaded Robot Schematics ------------------ None Fabricated ------------ Nothing Alien Tech Used ----------------- None Achievements -------------- None Challenges ------------ None Game ------ Seed FlightContainmentTerrabomb Manual? 0 Play Time 00:08:52 Cumulative 174.9 hours Start 2021.01.30 @ 16:09:18 End 2021.01.30 @ 16:26:08 Sessions 1 Manual Loads 0 Difficulty Rogue Special Mode None Game No. 100 Rogue 100 Adventurer 0 Explorer 0 Win Type - Total 3 Types 3/0/0/0/0/0/0/0/0 Lore% 38 Gallery% 64 Achievement% 50 Wizard Run 0 Options --------- ASCII 0 Keyboard 0 Movement Mouse Keybinds 0 Fullscreen 2 Font 18/TerminusBold Map View 76x50 Tactical HUD 1 Map Filters NONE Filters NONE Steam 1 RUN: cfbe20eb-880b-4dfc-ab4e-d0dc6af92fba